bitfinex-derivatives/quotes_SOLF0:USTF0_20260217
["timestamp","ask_amount","ask_price","bid_price","bid_amount"]
[1771350496968,28.6069635,83.449,83.37,6.16428436]
[1771350497662,28.6069635,83.421,83.37,6.16428436]
[1771350498462,10.7939,83.418,83.37,6.16428436]
[1771350499665,39.40424937,83.418,83.37,6.16428436]
[1771350499965,28.61034937,83.409,83.35,6.16428436]
[1771350500365,28.61034937,83.386,83.333,10.8047]
[1771350501266,28.60934624,83.384,83.33,6.16428436]
[1771350502863,28.60934624,83.384,83.317,75.54]
[1771350502864,28.60522808,83.409,83.35,6.16428436]
[1771350503374,28.60522808,83.394,83.35,6.16428436]
[1771350504868,28.60522808,83.394,83.351,10.8025]
[1771350505466,28.60522808,83.394,83.359,10.8014]
[1771350505769,28.57441726,83.408,83.35,6.16428436]
[1771350506663,28.55642806,83.406,83.351,10.8025]
[1771350507672,28.55642806,83.404,83.351,10.8025]
[1771350507973,28.55642806,83.404,83.358,10.8015]
[1771350508369,28.55642806,83.424,83.37,6.16428436]
[1771350508876,28.57159792,83.457,83.402,10.7958]
[1771350509174,28.57159792,83.457,83.41,6.16428436]
[1771350509374,10.88770342,83.539,83.43,6.16428436]
[1771350509668,6.16428436,83.52,83.43,6.16428436]
[1771350509864,6.16428436,83.52,83.406,50.96082997]
[1771350509865,6.16428436,83.52,83.45,6.16428436]
[1771350510068,10.7812,83.516,83.45,6.16428436]
[1771350510263,6.16428436,83.52,83.45,6.16428436]
[1771350510464,6.16428436,83.52,83.43,6.16428436]
[1771350510866,6.16428436,83.5,83.41,6.16428436]
[1771350511069,6.16428436,83.5,83.412,75.54]
[1771350511269,111.64,83.519,83.413,10.7944]
[1771350511270,19.52660545,83.465,83.413,10.7944]
[1771350511672,19.52660545,83.465,83.41,6.16428436]
[1771350511875,19.52660545,83.465,83.413,10.7945]
[1771350512368,19.52660545,83.465,83.366,22.29166876]
[1771350512369,19.52660545,83.463,83.402,10.7958]
[1771350512576,19.52660545,83.463,83.395,75.54]
[1771350512974,19.52660545,83.463,83.41,10.7949]
[1771350513274,19.52660545,83.463,83.395,75.54]
[1771350513768,19.52660545,83.463,83.398,10.7963]
[1771350514378,19.3492403,83.46,83.395,75.54]
[1771350515673,19.3492403,83.46,83.396,10.7966]
[1771350516274,19.3492403,83.46,83.395,75.54]
[1771350516873,10.7894,83.453,83.395,75.54]
[1771350517077,19.3492403,83.46,83.395,75.54]
[1771350517275,6.16428436,83.48,83.395,75.54]
[1771350517276,10.7868,83.473,83.41,6.16428436]
[1771350518273,10.7879,83.464,83.41,6.16428436]
[1771350519177,19.32776777,83.472,83.411,10.7947]
[1771350519372,19.32776777,83.489,83.43,6.16428436]
[1771350519571,19.32776777,83.489,83.41,6.16428436]
[1771350519771,19.32776777,83.525,83.466,10.7876]
[1771350520077,10.7792,83.532,83.408,167.9241]
[1771350520078,75.5,83.559,83.51,6.16428436]
[1771350520373,10.7761,83.556,83.51,6.16428436]
[1771350520677,19.29437319,83.554,83.47,6.16428436]
[1771350521077,19.29437319,83.536,83.47,6.16428436]
[1771350521571,19.29437319,83.536,83.471,10.7869]
[1771350522371,75.5,83.535,83.471,10.7869]
[1771350522979,19.29437319,83.536,83.471,10.7869]
[1771350523272,75.5,83.535,83.471,10.7869]
[1771350524079,19.37103816,83.534,83.471,10.7869]
[1771350524575,75.48,83.533,83.471,10.7869]
[1771350525080,75.48,83.533,83.48,10.7857]
[1771350525279,75.48,83.532,83.47,6.16428436]
[1771350526278,19.36221808,83.531,83.47,6.16428436]
[1771350526680,19.36221808,83.531,83.471,10.7869]
[1771350526878,19.36221808,83.531,83.47,6.16428436]
[1771350527078,19.36336525,83.519,83.45,6.16428436]
[1771350527275,19.36336525,83.517,83.45,6.16428436]
[1771350527983,19.36336525,83.515,83.459,10.7884]
[1771350528184,19.36336525,83.514,83.459,10.7884]
[1771350528482,75.46,83.513,83.459,10.7884]
[1771350528682,94.83366368,83.513,83.459,10.7884]
[1771350529184,94.83366368,83.513,83.467,10.7874]
[1771350529382,75.46,83.512,83.467,10.7874]
[1771350529878,19.37366368,83.513,83.467,10.7874]
[1771350530080,75.46,83.512,83.467,10.7874]
[1771350530383,19.37366368,83.51,83.45,6.16428436]
[1771350531079,19.37366368,83.51,83.457,10.7887]
[1771350531283,19.37366368,83.51,83.45,6.16428436]
[1771350531688,75.46,83.509,83.45,6.16428436]
[1771350532287,19.37884936,83.523,83.45,6.16428436]
[1771350532489,75.46,83.522,83.45,6.16428436]
[1771350533088,94.84709245,83.522,83.478,10.786]
[1771350533291,19.38709245,83.521,83.478,10.786]
[1771350533591,275.64,83.587,83.451,36.1]
[1771350533592,75.46,83.52,83.451,36.1]
[1771350533789,19.38709245,83.569,83.481,36.1]
[1771350533992,19.38709245,83.569,83.5,6.16428436]
[1771350534294,19.38709245,83.559,83.49,6.16428436]
[1771350534792,19.38709245,83.559,83.506,10.7824]
[1771350535090,19.38709245,83.559,83.49,6.16428436]
[1771350535091,75.44,83.558,83.49,6.16428436]
[1771350535388,6.16428436,83.58,83.49,6.16428436]
[1771350535595,19.38565863,83.579,83.528,10.7795]
[1771350535799,10.7706,83.598,83.528,10.7795]
[1771350535800,19.38565863,83.577,83.528,10.7795]
[1771350536099,19.38565863,83.577,83.517,10.781]
[1771350536398,19.38565863,83.575,83.51,6.16428436]
[1771350536588,19.41837245,83.573,83.465,75.44]
[1771350536897,6.16428436,83.6,83.45,167.839]
[1771350536898,19.41837245,83.569,83.48,6.16428436]
[1771350537096,19.41837245,83.566,83.499,10.7833]
[1771350537491,19.41837245,83.566,83.48,6.16428436]
[1771350537687,19.41837245,83.564,83.48,6.16428436]
[1771350537898,19.41837245,83.564,83.516,10.7811]
[1771350538197,19.41837245,83.562,83.5,6.16428436]
[1771350539596,75.44,83.561,83.5,6.16428436]
[1771350539793,94.85705497,83.561,83.515,10.7812]
[1771350539995,19.41705497,83.56,83.515,10.7812]
[1771350540189,19.41705497,83.56,83.5,6.16428436]
[1771350540390,19.41705497,83.559,83.48,6.16428436]
[1771350540589,19.43389098,83.557,83.48,6.16428436]
[1771350540792,19.43389098,83.539,83.479,10.7859]
[1771350541892,19.43389098,83.536,83.479,10.7859]
[1771350542292,6.16428436,83.52,83.469,10.7871]
[1771350542499,19.43273737,83.518,83.45,6.16428436]
[1771350542698,19.43273737,83.516,83.45,6.16428436]
[1771350543490,19.43273737,83.516,83.458,10.7885]
[1771350543698,19.43273737,83.514,83.44,6.16428436]
[1771350544094,19.43273737,83.512,83.44,6.16428436]
[1771350544290,19.43273737,83.51,83.44,6.16428436]
[1771350544688,19.39470178,83.499,83.447,10.79]
[1771350545090,19.39470178,83.497,83.429,10.7923]
[1771350545293,19.39470178,83.479,83.384,21.5965]
[1771350545504,19.39470178,83.477,83.384,21.5965]
[1771350546193,19.39470178,83.477,83.384,57.6965]
[1771350546596,19.39470178,83.477,83.384,21.5965]
[1771350546801,19.39470178,83.477,83.416,10.794]
[1771350547001,19.39470178,83.477,83.384,21.5965]
[1771350547203,19.39917682,83.475,83.432,10.7919]
[1771350547402,75.44,83.478,83.42,6.16428436]
[1771350547602,75.44,83.488,83.42,6.16428436]
[1771350548302,75.44,83.488,83.44,10.791]
[1771350548500,19.39917682,83.487,83.4,6.16428436]
[1771350548699,6.16428436,83.5,83.4,6.16428436]
[1771350548700,19.39087024,83.485,83.4,6.16428436]
[1771350548901,19.39087024,83.479,83.422,10.7932]
[1771350549106,75.44,83.478,83.4,6.16428436]
[1771350549294,75.44,83.478,83.387,182.82642997]
[1771350549295,75.44,83.478,83.42,6.16428436]
[1771350549805,6.16428436,83.5,83.42,6.16428436]
[1771350550099,75.44,83.499,83.42,6.16428436]
[1771350550502,6.16428436,83.5,83.42,6.16428436]
[1771350550901,75.44,83.499,83.42,6.16428436]
[1771350551799,9.69053956,83.498,83.451,10.7895]
[1771350552205,9.69053956,83.498,83.4,6.16428436]
[1771350552403,9.69053956,83.496,83.4,6.16428436]
[1771350552605,75.44,83.497,83.4,6.16428436]
[1771350552606,9.71488414,83.493,83.432,10.792]
[1771350552806,9.71488414,83.479,83.432,10.792]
[1771350553106,9.71488414,83.479,83.424,10.7931]
[1771350553300,9.71488414,83.477,83.424,10.7931]
[1771350553497,9.71488414,83.477,83.4,6.16428436]
[1771350553707,9.71488414,83.458,83.398,10.7964]
[1771350554007,9.71488414,83.456,83.398,10.7964]
[1771350554212,9.71488414,83.454,83.398,10.7964]
[1771350554507,75.46,83.453,83.38,6.15797374]
[1771350554805,9.73725206,83.452,83.38,6.15797374]
[1771350555006,9.73725206,83.451,83.38,6.15797374]
[1771350556502,9.73869584,83.439,83.355,14.86082997]
[1771350556703,9.73869584,83.439,83.35,184.93105014]
[1771350556704,6.15797374,83.42,83.35,184.93105014]
[1771350556903,9.73869584,83.418,83.368,10.8003]
[1771350557108,9.73869584,83.418,83.35,6.15797374]
[1771350557304,9.73869584,83.418,83.382,10.7984]
[1771350557509,75.46,83.417,83.382,10.7984]
[1771350557807,75.46,83.417,83.35,6.15797374]
[1771350558307,85.19869584,83.418,83.35,6.15797374]
[1771350558508,85.19869584,83.418,83.37,10.8]
[1771350558704,9.71994643,83.409,83.33,6.15797374]
[1771350559106,9.71994643,83.409,83.357,10.8017]
[1771350559306,85.19994643,83.408,83.357,10.8017]
[1771350559710,9.71994643,83.407,83.357,10.8017]
[1771350560511,9.71994643,83.407,83.33,6.15797374]
[1771350560512,9.71994643,83.407,83.348,10.8028]
[1771350560712,9.71994643,83.407,83.33,6.15797374]
[1771350561311,75.48,83.406,83.33,6.15797374]
[1771350561511,9.71994643,83.407,83.33,6.15797374]
[1771350561713,75.48,83.405,83.33,6.15797374]
[1771350562313,9.71994643,83.407,83.33,6.15797374]
[1771350562514,75.48,83.404,83.33,6.15797374]
[1771350562706,75.48,83.404,83.361,10.8011]
[1771350564508,6.15797374,83.45,83.377,10.7991]
[1771350564509,9.73866148,83.421,83.377,10.7991]
[1771350564814,75.5,83.42,83.377,10.7991]
[1771350565013,9.73866148,83.421,83.377,10.7991]
[1771350565309,9.73866148,83.418,83.368,10.8002]
[1771350565511,9.73866148,83.416,83.368,10.8002]
[1771350566120,9.73866148,83.416,83.359,10.8014]
[1771350566416,9.73866148,83.416,83.35,6.15797374]
[1771350567919,9.71219201,83.414,83.35,6.15797374]
[1771350569114,9.71219201,83.414,83.379,10.7988]
[1771350569313,75.52,83.413,83.379,10.7988]
[1771350569719,9.71219201,83.414,83.379,10.7988]
[1771350571314,75.52,83.413,83.379,10.7988]
[1771350571619,85.21265813,83.413,83.379,10.7988]
[1771350572219,9.69265813,83.413,83.386,10.7979]
[1771350572417,75.52,83.412,83.386,10.7979]
[1771350572919,75.52,83.412,83.378,10.7989]
[1771350573418,75.52,83.411,83.378,10.7989]
[1771350575219,75.52,83.411,83.384,10.7981]
[1771350575715,9.67865288,83.429,83.391,10.7972]
[1771350575915,75.52,83.428,83.391,10.7972]
[1771350576116,75.52,83.427,83.391,10.7972]
[1771350576418,85.19865288,83.427,83.391,10.7972]
[1771350576615,9.68279084,83.426,83.384,10.7982]
[1771350576916,9.68279084,83.426,83.352,21.6047]
[1771350577218,9.68279084,83.426,83.383,10.7984]
[1771350577419,9.68279084,83.424,83.352,21.6047]
[1771350577716,75.52,83.423,83.388,10.7977]
[1771350578116,75.52,83.423,83.353,21.6044]
[1771350578316,9.68279084,83.421,83.379,10.7989]
[1771350578819,9.68279084,83.421,83.369,10.8001]
[1771350579319,9.68279084,83.421,83.35,6.15797374]
[1771350580020,9.68279084,83.421,83.376,10.7993]
[1771350580422,9.64270388,83.419,83.376,10.7993]
[1771350581019,9.64270388,83.419,83.369,10.8002]
[1771350581318,9.64316568,83.417,83.35,6.15797374]
[1771350582724,9.64316568,83.417,83.37,10.8]
[1771350583522,9.64316568,83.417,83.376,10.7992]
[1771350584032,9.64316568,83.417,83.35,6.15797374]
[1771350584226,75.52,83.416,83.35,6.15797374]
[1771350584628,6.15797374,83.43,83.351,36.1]
[1771350584827,75.52,83.441,83.37,6.15797374]
[1771350585028,6.15797374,83.45,83.37,6.15797374]
[1771350585229,75.52,83.449,83.37,6.15797374]
[1771350585532,75.52,83.451,83.416,10.794]
[1771350585831,75.52,83.459,83.39,6.15797374]
[1771350586825,4.846949,83.465,83.39,6.15797374]
[1771350587132,4.846949,83.463,83.39,6.15797374]
[1771350587725,4.846949,83.463,83.429,10.7924]
[1771350588631,4.846949,83.463,83.39,6.15797374]
[1771350589130,4.79698148,83.454,83.39,6.15797374]
[1771350589330,4.79698148,83.454,83.403,10.7958]
[1771350589928,4.79698148,83.449,83.394,10.7969]
[1771350590128,4.79698148,83.446,83.394,10.7969]
[1771350590334,4.79698148,83.444,83.394,10.7969]
[1771350590527,4.79698148,83.444,83.37,6.15797374]
[1771350590731,6.15797374,83.45,83.37,6.15797374]
[1771350590732,4.78276799,83.442,83.37,6.15797374]
[1771350591828,4.78276799,83.442,83.393,10.797]
[1771350592232,4.78276799,83.442,83.366,14.86082997]
[1771350592430,4.78276799,83.442,83.385,10.798]
[1771350592630,4.78276799,83.442,83.362,14.86082997]
[1771350592827,4.8906535,83.44,83.362,14.86082997]
[1771350593029,4.8906535,83.429,83.379,10.7988]
[1771350593233,4.8906535,83.427,83.36,21.01880371]
[1771350593428,4.8906535,83.425,83.36,6.15797374]
[1771350593634,4.8906535,83.425,83.356,14.86082997]
[1771350593832,4.8906535,83.425,83.355,14.86082997]
[1771350594130,4.8906535,83.425,83.379,10.7989]
[1771350594334,4.8906535,83.425,83.358,14.86082997]
[1771350594529,4.8906535,83.425,83.354,14.86082997]
[1771350594729,4.8906535,83.425,83.34,6.15797374]
[1771350594730,4.88463542,83.409,83.34,14.86082997]
[1771350594938,4.88463542,83.409,83.34,75.5]
[1771350595533,4.88463542,83.409,83.342,198.45557528]
[1771350595726,4.88463542,83.409,83.342,14.86082997]
[1771350596135,4.88463542,83.409,83.371,10.7999]
[1771350596335,4.88463542,83.409,83.35,14.86082997]
[1771350596535,4.88463542,83.409,83.353,14.86082997]
[1771350596839,4.88463542,83.409,83.352,14.86082997]
[1771350597232,4.88463542,83.409,83.354,14.86082997]
[1771350597940,4.88463542,83.409,83.369,10.8002]
[1771350599738,4.88463542,83.409,83.376,10.7992]
[1771350600436,75.52,83.412,83.358,14.86082997]
[1771350600641,4.93198126,83.44,83.37,6.15797374]
[1771350600940,75.52,83.439,83.37,6.15797374]
[1771350601141,4.93198126,83.438,83.391,10.7973]
[1771350601542,4.93198126,83.438,83.398,10.7964]
[1771350601739,4.93198126,83.438,83.364,14.86082997]
[1771350602137,4.93198126,83.429,83.36,81.67797374]
[1771350602343,4.93198126,83.429,83.393,10.7971]
[1771350603043,4.93198126,83.429,83.4,10.7962]
[1771350603242,75.52,83.437,83.364,50.96082997]
[1771350603445,75.52,83.437,83.369,14.86082997]
[1771350604146,4.93411459,83.445,83.41,10.7948]
[1771350604543,4.93411459,83.445,83.382,14.86082997]
[1771350604740,4.93443947,83.461,83.4,6.15797374]
[1771350604942,4.93443947,83.461,83.401,75.52]
[1771350605149,4.93443947,83.461,83.424,10.7931]
[1771350605649,4.93443947,83.461,83.401,75.52]
[1771350605843,4.93443947,83.461,83.4,6.15797374]
[1771350606340,4.93443947,83.461,83.391,14.86082997]
[1771350606542,4.93443947,83.459,83.383,75.52]
[1771350606737,4.93443947,83.459,83.384,14.86082997]
[1771350607048,4.93443947,83.459,83.385,14.86082997]
[1771350607447,4.93443947,83.459,83.386,14.86082997]
[1771350607745,4.93443947,83.459,83.412,10.7945]
[1771350608042,4.93443947,83.459,83.419,10.7936]
[1771350608742,4.93443947,83.459,83.386,14.86082997]
[1771350608947,4.91415572,83.449,83.38,6.15797374]
[1771350609146,4.91415572,83.447,83.393,10.797]
[1771350609344,4.91415572,83.447,83.366,75.52]
[1771350610047,4.91415572,83.445,83.366,75.52]
[1771350610252,4.91415572,83.445,83.366,90.38082997]
[1771350610542,4.91415572,83.445,83.378,14.86082997]
[1771350611250,4.91415572,83.445,83.374,14.86082997]
[1771350611438,4.91415572,83.445,83.398,10.7964]
[1771350611637,4.91415572,83.445,83.378,14.86082997]
[1771350612042,4.91415572,83.445,83.379,14.86082997]
[1771350612638,4.91415572,83.445,83.369,21.6003]
[1771350612639,4.91415572,83.445,83.38,14.86082997]
[1771350613245,4.91415572,83.445,83.395,10.7968]
[1771350613646,4.91415572,83.445,83.38,14.86082997]
[1771350613846,4.90534918,83.444,83.394,10.7968]
[1771350614250,4.90534918,83.444,83.38,14.86082997]
[1771350614850,4.90534918,83.444,83.401,10.796]
[1771350615246,4.90534918,83.444,83.385,14.86082997]
[1771350615550,4.90534918,83.444,83.416,10.794]
[1771350616253,4.91237154,83.46,83.416,10.794]
[1771350617948,6.16012862,83.49,83.41,6.16012862]
[1771350618149,4.90414383,83.496,83.436,14.86082997]
[1771350618451,4.90414383,83.513,83.449,14.86082997]
[1771350618648,4.92894332,83.529,83.45,6.16012862]
[1771350618849,4.92894332,83.542,83.47,6.16012862]
[1771350619047,4.92894332,83.542,83.48,6.16012862]
[1771350619251,6.16012862,83.58,83.481,3.11843822]
[1771350619447,6.16012862,83.58,83.524,10.7801]
[1771350619645,6.16012862,83.56,83.501,3.11843822]
[1771350619846,6.16012862,83.54,83.463,3.11843822]
[1771350620049,6.16012862,83.54,83.47,3.11843822]
[1771350620551,6.16012862,83.56,83.481,2.84501214]
[1771350620747,6.16012862,83.56,83.497,2.84501214]
[1771350621148,3.90103523,83.559,83.501,2.84501214]
[1771350621353,3.90103523,83.559,83.481,2.84501214]
[1771350621548,3.90103523,83.557,83.481,2.84501214]
[1771350621748,3.90103523,83.557,83.48,6.16012862]
[1771350621749,3.90103523,83.539,83.462,13.63311214]
[1771350621953,3.90103523,83.539,83.463,2.84501214]
[1771350622356,3.90103523,83.519,83.445,2.84501214]
[1771350622854,3.90103523,83.499,83.445,2.84501214]
[1771350623859,3.90103523,83.518,83.445,2.84501214]
[1771350624462,6.16012862,83.55,83.461,2.84873158]
[1771350624463,3.90103523,83.549,83.461,2.84873158]
[1771350624655,3.90103523,83.569,83.503,10.7828]
[1771350624857,3.90103523,83.569,83.501,2.87197282]
[1771350625159,3.90103523,83.562,83.49,10.7844]
[1771350625762,3.90103523,83.549,83.481,2.87197282]
[1771350626356,3.90103523,83.549,83.482,2.87197282]
[1771350627854,3.90103523,83.549,83.493,10.7841]
[1771350628061,3.90103523,83.549,83.482,2.87197282]
[1771350628852,3.90103523,83.548,83.482,2.87197282]
[1771350629056,3.90103523,83.548,83.483,10.7854]
[1771350629258,3.90103523,83.548,83.48,6.16012862]
[1771350629455,3.90103523,83.546,83.48,6.16012862]
[1771350629862,3.90103523,83.544,83.481,10.7857]
[1771350630461,3.90103523,83.544,83.49,10.7845]
[1771350630661,3.90103523,83.544,83.48,6.16012862]
[1771350630862,3.90103523,83.543,83.48,6.16012862]
[1771350631062,3.90103523,83.543,83.481,10.7857]
[1771350631257,3.90103523,83.539,83.462,2.75861096]
[1771350631562,3.90103523,83.524,83.462,2.75861096]
[1771350633254,6.16012862,83.54,83.462,2.75861096]
[1771350633461,3.90103523,83.539,83.462,2.75861096]
[1771350634362,3.90103523,83.525,83.465,10.7877]
[1771350634662,3.90103523,83.519,83.45,6.16012862]
[1771350634863,3.90103523,83.516,83.455,10.7889]
[1771350635461,36.1,83.567,83.42,36.1]
[1771350635462,3.90103523,83.539,83.46,2.61926648]
[1771350636361,3.90103523,83.537,83.46,2.61926648]
[1771350637067,3.90103523,83.535,83.478,10.786]
[1771350637361,3.90103523,83.535,83.442,21.5813]
[1771350637362,3.90103523,83.535,83.471,2.61795805]
[1771350637566,6.16012862,83.55,83.471,2.61795805]
[1771350637764,3.90103523,83.549,83.471,2.61795805]
[1771350637967,3.90103523,83.529,83.453,2.61795805]
[1771350638666,3.90103523,83.529,83.474,10.7865]
[1771350640565,3.90103523,83.529,83.481,10.7856]
[1771350641465,10.97465105,83.618,83.501,2.6065859]
[1771350641673,6.16012862,83.61,83.521,2.6065859]
[1771350641872,3.90103523,83.614,83.541,2.6065859]
[1771350642271,79.34103523,83.614,83.541,2.6065859]
[1771350642566,3.90103523,83.614,83.579,10.773]
[1771350642873,3.90103523,83.614,83.541,2.6065859]
[1771350644468,6.16012862,83.63,83.577,10.7732]
[1771350644674,75.42,83.628,83.577,10.7732]
[1771350645473,75.42,83.629,83.563,2.58488403]
[1771350645672,75.42,83.633,83.563,2.58488403]
[1771350646274,3.96992425,83.634,83.563,2.58488403]
[1771350646466,79.38992425,83.634,83.563,2.58488403]
[1771350646670,79.38992425,83.634,83.59,10.7716]
[1771350647072,79.38992425,83.634,83.563,2.58488403]
[1771350648076,79.36992425,83.634,83.563,2.58488403]
[1771350648271,3.96992425,83.634,83.563,2.58488403]
[1771350648677,3.96992425,83.634,83.588,10.7718]
[1771350649175,3.96992425,83.634,83.563,2.58488403]
[1771350649377,3.96992425,83.652,83.581,2.35581349]
[1771350649676,75.4,83.651,83.581,2.35581349]
[1771350650581,3.96992425,83.652,83.581,2.35581349]
[1771350650782,3.96992425,83.652,83.603,10.7698]
[1771350651276,3.96992425,83.637,83.572,10.7739]
[1771350651779,3.96992425,83.619,83.55,8.53251317]
[1771350651978,3.96992425,83.619,83.569,10.7742]
[1771350652184,3.96992425,83.619,83.551,2.37238455]
[1771350653285,3.76246799,83.639,83.569,2.40387537]
[1771350653477,3.76246799,83.636,83.569,2.40387537]
[1771350654184,3.76246799,83.636,83.551,2.40387537]
[1771350654378,3.76246799,83.619,83.551,2.40387537]
[1771350655184,3.76246799,83.616,83.551,2.40387537]
[1771350655582,3.76246799,83.616,83.559,10.7756]
[1771350656281,3.76246799,83.614,83.55,10.7767]
[1771350656489,3.76246799,83.599,83.534,2.38226531]
[1771350656784,3.76246799,83.599,83.548,10.777]
[1771350656982,10.7688,83.613,83.534,2.38226531]
[1771350657281,3.76246799,83.629,83.551,2.31537536]
[1771350657780,167.3574,83.691,83.547,10.7772]
[1771350657781,3.76246799,83.602,83.547,10.7772]
[1771350658386,3.76246799,83.6,83.547,10.7772]
[1771350659186,3.76246799,83.622,83.548,2.26469025]
[1771350659582,10.7681,83.618,83.564,10.7749]
[1771350659788,3.76246799,83.617,83.564,10.7749]
[1771350660382,3.76246799,83.617,83.548,2.26469025]
[1771350660680,3.76246799,83.635,83.561,2.26469025]
[1771350660882,21.5182,83.688,83.561,2.26469025]
[1771350660883,3.76246799,83.634,83.561,2.26469025]
[1771350661182,3.76246799,83.619,83.541,2.21773567]
[1771350661384,6.16012862,83.6,83.541,2.21773567]
[1771350661588,9.92259661,83.6,83.541,2.21773567]
[1771350661785,3.76246799,83.6,83.566,10.7746]
[1771350661989,3.76246799,83.6,83.541,2.21773567]
[1771350663287,6.16012862,83.61,83.541,2.21773567]
[1771350663791,10.7693,83.608,83.541,2.21773567]
[1771350664092,3.76246799,83.607,83.541,2.21773567]
[1771350664490,3.76246799,83.644,83.561,2.22326047]
[1771350664888,10.7658,83.636,83.564,10.7749]
[1771350665093,3.76246799,83.644,83.565,2.18488643]
[1771350665292,3.76246799,83.643,83.565,2.18488643]
[1771350665591,10.7653,83.64,83.58,2.18488643]
[1771350665893,3.76246799,83.639,83.58,2.18488643]
[1771350666986,3.76246799,83.639,83.561,1.95856234]
[1771350667496,14.53096799,83.615,83.561,1.95856234]
[1771350667793,3.76246799,83.614,83.552,10.7765]
[1771350667993,3.76246799,83.614,83.552,12.73506234]
[1771350668189,6.16012862,83.61,83.535,1.95856234]
[1771350668390,3.76246799,83.609,83.535,1.95856234]
[1771350668991,3.76246799,83.609,83.53,6.16012862]
[1771350668992,10.77,83.603,83.544,1.96074029]
[1771350669193,3.76246799,83.629,83.551,1.96074029]
[1771350670292,3.76246799,83.628,83.555,10.7761]
[1771350670695,3.76246799,83.626,83.555,10.7761]
[1771350671087,10.7675,83.623,83.555,10.7761]
[1771350671396,3.76246799,83.622,83.551,1.96074029]
[1771350671587,3.76246799,83.609,83.533,1.98889096]
[1771350671789,3.76246799,83.606,83.537,10.7784]
[1771350672189,3.76246799,83.606,83.533,1.98889096]
[1771350672392,3.76246799,83.624,83.558,1.98889096]
[1771350673202,14.52996799,83.623,83.572,10.7739]
[1771350673497,35.92,83.672,83.558,1.98889096]
[1771350673794,3.76246799,83.656,83.605,10.7697]
[1771350674093,3.76246799,83.656,83.591,1.9907569]
[1771350675201,3.76246799,83.656,83.617,10.7681]
[1771350677597,6.12695662,83.67,83.594,3.68754811]
[1771350677798,250.17715538,83.7,83.611,3.68754811]
[1771350678101,250.17715538,83.7,83.651,10.7637]
[1771350678301,250.17715538,83.7,83.631,3.68754811]
[1771350680303,3.67806721,83.699,83.639,10.7653]
[1771350680501,3.67806721,83.699,83.631,3.68754811]
[1771350680709,3.67806721,83.697,83.631,3.68754811]
[1771350680903,3.67806721,83.695,83.631,3.68754811]
[1771350681805,3.67806721,83.694,83.632,10.7662]
[1771350682707,3.67806721,83.682,83.623,10.7673]
[1771350682903,3.67806721,83.669,83.592,3.68754811]
[1771350683210,3.67806721,83.667,83.592,3.68754811]
[1771350683809,75.32,83.676,83.611,3.68754811]
[1771350684001,75.32,83.677,83.611,3.68754811]
[1771350684202,3.67806721,83.669,83.593,3.68754811]
[1771350684411,3.67806721,83.667,83.593,3.68754811]
[1771350684808,3.67806721,83.667,83.615,10.7683]
[1771350685112,3.67806721,83.667,83.593,3.68754811]
[1771350685310,75.32,83.673,83.611,3.68754811]
[1771350685611,75.32,83.683,83.632,10.7662]
[1771350685810,3.67806721,83.685,83.61,6.12695662]
[1771350685811,3.67806721,83.685,83.628,3.68754811]
[1771350686208,3.67806721,83.685,83.63,10.7664]
[1771350686412,3.67806721,83.685,83.628,3.68754811]
[1771350687009,75.32,83.684,83.628,3.68754811]
[1771350687313,3.67806721,83.679,83.61,9.81450473]
[1771350687514,3.67806721,83.679,83.611,3.68754811]
[1771350688111,3.67806721,83.679,83.619,10.7678]
[1771350688412,3.67806721,83.677,83.593,3.68754811]
[1771350688813,3.67806721,83.675,83.61,10.7689]
[1771350689015,3.67806721,83.675,83.593,3.68754811]
[1771350689706,3.67806721,83.673,83.609,10.7692]
[1771350690415,3.67806721,83.67,83.616,10.7682]
[1771350692312,3.67806721,83.659,83.607,10.7693]
[1771350692515,3.67806721,83.657,83.593,3.68754811]
[1771350693416,3.67806721,83.657,83.606,10.7695]
[1771350693818,3.67806721,83.657,83.576,3.68754811]
[1771350694316,3.67806721,83.655,83.576,3.68754811]
[1771350694708,3.67806721,83.654,83.597,10.7707]
[1771350694912,3.67806721,83.654,83.576,3.68754811]
[1771350695110,75.32,83.653,83.576,3.68754811]
[1771350695315,3.67806721,83.651,83.598,10.7705]
[1771350695725,3.67806721,83.649,83.598,10.7705]
[1771350696412,75.32,83.65,83.59,10.7716]
[1771350696413,3.67806721,83.639,83.59,10.7716]
[1771350696618,3.67806721,83.639,83.576,3.68754811]
[1771350696810,75.32,83.65,83.576,3.68754811]
[1771350697008,75.32,83.65,83.604,10.7697]